bitfinex-derivatives/quotes_ETHF0:USTF0_20250911
["timestamp","ask_amount","ask_price","bid_price","bid_amount"]
[1757558383136,0.425,4380.9,4380.8,2.48713605]
[1757558383335,0.70761866,4380.9,4380.8,0.7604]
[1757558383531,0.70761866,4380.9,4380.8,0.9737]
[1757558385236,0.70761866,4380.9,4380.8,0.5294]
[1757558385433,0.70761866,4380.9,4380.8,0.7427]
[1757558386634,0.70761866,4380.9,4380.8,0.5294]
[1757558386834,0.70761866,4380.9,4380.8,0.7427]
[1757558388732,0.41151866,4380.9,4380.8,0.7427]
[1757558388946,0.093,4381.9,4381.1,0.7427]
[1757558389134,0.2091,4381.3,4381.2,1.92448405]
[1757558391643,0.2091,4381.3,4381.2,0.7427]
[1757558392238,0.2961,4381.2,4381.0,0.1191]
[1757558392438,0.5052,4381.1,4381.0,0.3349]
[1757558392635,0.7211,4381.1,4381.0,0.5482]
[1757558392936,0.2091,4381.1,4381.0,0.8618]
[1757558395345,0.7211,4381.1,4381.0,0.8618]
[1757558398140,0.405,4381.1,4381.0,0.8618]
[1757558398345,0.708,4381.1,4380.5,0.1191]
[1757558398548,0.405,4381.1,4381.0,0.2067]
[1757558398740,0.708,4381.1,4381.0,0.5205]
[1757558402940,0.708,4381.1,4381.0,0.8452]
[1757558403141,0.405,4381.1,4381.0,0.8452]
[1757558403448,0.2091,4381.1,4381.0,0.8452]
[1757558403743,0.2109,4381.2,4381.1,0.7244]
[1757558404247,0.303,4381.4,4381.1,0.4106]
[1757558404548,0.2109,4381.3,4381.2,0.7244]
[1757558405954,0.5139,4381.3,4381.2,0.7244]
[1757558406149,0.4068,4381.3,4380.8,0.3138]
[1757558406350,0.2109,4380.8,4380.7,1.90618405]
[1757558408548,0.303,4381.4,4380.8,0.3138]
[1757558408754,0.7098,4381.4,4381.3,0.5205]
[1757558409558,0.7098,4381.4,4381.3,0.7244]
[1757558415348,0.4068,4381.4,4381.3,0.7244]
[1757558417565,0.7098,4381.4,4381.3,0.7244]
[1757558419666,0.7098,4381.4,4380.9,0.31722477]
[1757558420362,0.7098,4381.4,4381.0,0.3138]
[1757558420557,0.1213,4381.5,4380.9,0.31722477]
[1757558420558,0.8311,4381.0,4380.9,0.31722477]
[1757558420766,0.8311,4381.0,4380.9,0.00342477]
[1757558421070,0.7098,4381.0,4380.9,0.52392477]
[1757558421766,0.8311,4381.0,4380.9,0.31722477]
[1757558421959,0.8311,4381.0,4380.9,0.00342477]
[1757558422666,0.8311,4381.0,4380.9,0.31722477]
[1757558423761,0.8311,4381.0,4380.9,0.00342477]
[1757558424654,5.0621,4381.0,4380.9,0.00342477]
[1757558424854,5.63152434,4381.0,4380.1,0.3138]
[1757558425060,0.7098,4380.2,4380.1,0.7244]
[1757558425657,0.303,4380.6,4380.1,1.59238405]
[1757558425862,0.00342477,4381.8,4381.3,0.7244]
[1757558425863,0.4068,4381.4,4381.3,0.7244]
[1757558426162,0.2109,4381.4,4381.3,0.7244]
[1757558426969,0.303,4381.7,4381.3,0.7244]
[1757558427161,0.21302477,4381.8,4381.7,0.7093]
[1757558427466,0.00342477,4381.8,4381.7,0.7093]
[1757558437272,0.73382477,4381.8,4381.7,0.7093]
[1757558439775,0.42552477,4381.8,4381.7,0.7093]
[1757558441670,0.73382477,4381.8,4381.7,0.7093]
[1757558446680,0.73382477,4381.8,4381.7,0.3017]
[1757558446878,0.73382477,4381.8,4381.7,0.5068]
[1757558447780,0.73382477,4381.8,4381.7,0.7093]
[1757558448676,1.73194925,4381.8,4381.7,0.7093]
[1757558448878,1.73194925,4381.8,4381.7,0.5068]
[1757558449376,0.00342477,4381.8,4381.7,0.7093]
[1757558454285,0.52132477,4381.8,4381.7,0.7093]
[1757558454783,0.21302477,4381.8,4381.7,0.7093]
[1757558457184,0.00342477,4381.8,4381.7,1.70742448]
[1757558461389,0.00342477,4381.8,4381.7,0.7093]
[1757558464187,0.70862477,4381.8,4381.7,0.7093]
[1757558467093,0.70862477,4381.8,4381.0,2.16113605]
[1757558467094,0.7052,4381.2,4381.1,0.7409]
[1757558467493,0.4001,4381.2,4381.1,0.7409]
[1757558467694,0.1956,4381.2,4381.1,0.7409]
[1757558469896,0.5007,4381.2,4381.1,0.7409]
[1757558470497,0.7052,4381.2,4381.1,0.7409]
[1757558470899,0.4001,4381.2,4381.1,0.7409]
[1757558471098,0.195,4381.6,4381.1,0.4217]
[1757558471099,0.3051,4381.5,4381.1,0.4217]
[1757558471291,0.5007,4381.5,4381.4,0.7409]
[1757558472095,0.19902477,4381.8,4381.7,0.2071]
[1757558472297,0.43002477,4381.8,4381.7,0.7409]
[1757558472596,0.00342477,4381.8,4381.7,0.7409]
[1757558478499,0.00342477,4381.8,4381.7,1.73902448]
[1757558478698,0.70862477,4381.8,4381.7,0.7409]
[1757558480103,0.1956,4381.2,4381.1,0.5263]
[1757558480406,0.5007,4381.2,4381.1,0.7409]
[1757558481808,0.7052,4381.2,4381.1,0.7409]
[1757558483105,0.4001,4381.2,4381.1,0.7409]
[1757558484008,0.7052,4381.2,4381.1,0.7409]
[1757558484213,0.1956,4381.2,4381.1,0.7409]
[1757558486106,0.7052,4381.2,4381.1,0.7409]
[1757558487211,1.70332448,4381.2,4380.6,0.3107]
[1757558487818,0.1956,4381.2,4381.1,0.7137]
[1757558488111,0.5521,4381.5,4381.2,0.3107]
[1757558488313,0.1961,4381.3,4381.2,0.3107]
[1757558488514,1.31922448,4381.7,4381.2,0.7137]
[1757558488709,0.4271,4381.6,4381.5,0.5269]
[1757558488908,0.9538,4381.6,4381.5,0.7137]
[1757558489109,1.63082448,4381.6,4381.1,0.3107]
[1757558489313,0.7228,4381.5,4381.4,0.509]
[1757558489513,0.7228,4381.5,4381.4,0.7137]
[1757558489711,0.9538,4381.5,4381.4,0.7137]
[1757558490307,0.7228,4381.5,4381.4,0.7137]
[1757558490511,0.9538,4381.5,4381.4,0.7137]
[1757558493816,0.9538,4381.5,4381.4,0.509]
[1757558494014,1.0727,4381.5,4381.1,0.3107]
[1757558494213,1.0727,4381.5,4381.0,0.1239]
[1757558494612,1.0727,4381.5,4381.1,0.3107]
[1757558494920,1.72092448,4381.3,4381.2,0.509]
[1757558495714,1.72092448,4381.3,4380.5,0.1208]
[1757558496018,1.72092448,4381.3,4380.6,0.3107]
[1757558498511,0.7228,4381.3,4381.2,0.509]
[1757558498821,0.9538,4381.3,4381.2,0.7137]
[1757558499218,0.7228,4381.3,4381.2,0.7137]
[1757558499419,0.6327,4381.3,4381.2,0.7137]
[1757558499717,0.9538,4381.3,4381.2,0.7137]
[1757558500416,0.9538,4381.3,4381.2,0.3107]
[1757558500607,0.6327,4381.3,4380.6,0.3107]
[1757558500814,0.7228,4381.2,4381.1,0.1983]
[1757558501114,0.7228,4381.2,4381.1,0.509]
[1757558501819,0.7228,4381.2,4381.1,0.7137]
[1757558502718,0.4017,4381.2,4381.1,0.7137]
[1757558503414,0.7228,4381.2,4381.1,0.7137]
[1757558503909,0.1961,4381.2,4381.1,0.7137]
[1757558505521,0.7228,4381.2,4381.1,0.7137]
[1757558505716,0.7228,4381.2,4380.6,0.3107]
[1757558506618,0.231,4381.1,4380.6,0.3107]
[1757558506818,0.5172,4380.7,4380.6,0.7137]
[1757558507019,0.7228,4380.7,4380.6,0.7137]
[1757558507321,0.951,4380.7,4380.6,0.7137]
[1757558507530,0.951,4380.7,4380.6,0.1983]
[1757558507817,0.951,4380.7,4380.6,0.7137]
[1757558510216,0.951,4380.7,4380.1,0.3107]
[1757558510713,0.951,4380.7,4380.6,0.509]
[1757558511323,0.951,4380.7,4380.1,0.3107]
[1757558512224,0.951,4380.7,4380.6,0.1983]
[1757558512424,0.951,4380.7,4380.6,0.509]
[1757558513222,0.2282,4380.7,4380.6,0.7137]
[1757558513428,1.182,4380.7,4380.6,0.7137]
[1757558514130,1.182,4380.7,4380.6,0.509]
[1757558519526,0.951,4380.7,4380.6,0.509]
[1757558519731,0.951,4380.7,4380.6,0.7137]
[1757558519929,1.182,4380.7,4380.6,0.7137]
[1757558520232,0.951,4380.7,4380.6,0.7137]
[1757558520428,0.8609,4380.7,4380.6,0.7137]
[1757558520832,1.1588,4380.7,4380.6,0.7137]
[1757558524833,0.9278,4380.7,4380.6,0.7137]
[1757558525032,1.1588,4380.7,4380.6,0.7137]
[1757558531237,1.1588,4380.7,4379.6,2.04033605]
[1757558531535,0.5021,4380.3,4380.2,0.728]
[1757558533632,0.7303,4380.3,4380.2,0.728]
[1757558534935,0.9314,4380.3,4380.2,0.728]
[1757558536445,0.9314,4380.3,4380.2,0.5203]
[1757558536628,0.2042,4379.7,4379.6,0.728]
[1757558536832,0.5021,4379.7,4379.6,0.728]
[1757558537031,0.2042,4379.7,4379.6,0.728]
[1757558537232,0.2282,4380.3,4379.6,0.4203]
[1757558537447,0.2282,4380.3,4379.7,0.3077]
[1757558537634,0.7032,4380.2,4380.1,0.2126]
[1757558537933,0.7032,4380.2,4380.1,0.5203]
[1757558538836,0.7032,4380.2,4380.1,0.728]
[1757558551549,0.7032,4380.2,4380.1,0.7305]
[1757558553060,0.4053,4380.2,4380.1,0.7305]
[1757558553262,0.2042,4380.2,4380.1,0.7305]
[1757558553563,0.2282,4380.3,4380.1,0.4169]
[1757558553863,0.4445,4380.3,4380.2,0.7305]
[1757558557862,0.2282,4380.3,4380.2,0.7305]
[1757558561060,0.4445,4380.3,4380.2,0.7305]
[1757558561254,0.9552,4380.3,4380.2,0.7305]
[1757558561562,0.9552,4380.3,4380.2,0.5265]
[1757558561961,0.9552,4380.3,4380.2,0.7305]
[1757558563369,0.9552,4380.3,4380.2,0.5265]
[1757558563555,0.9552,4380.3,4380.2,0.3136]
[1757558563753,0.9552,4380.3,4379.7,0.9987228]
[1757558563968,0.727,4380.2,4380.1,0.5265]
[1757558564271,0.727,4380.2,4380.1,0.7305]
[1757558565167,0.9553,4380.2,4380.1,0.7305]
[1757558567269,0.2283,4380.2,4380.1,0.7305]
[1757558567766,0.4446,4380.2,4380.1,0.7305]
[1757558567966,0.7421,4380.2,4380.1,0.7305]
[1757558570269,0.4446,4380.2,4380.1,0.7305]
[1757558572469,0.2283,4380.2,4380.1,0.7305]
[1757558583379,0.9526,4380.2,4380.1,0.7305]
[1757558585267,0.9526,4380.2,4380.1,0.3136]
[1757558585472,0.4375,4380.2,4380.1,0.7251]
[1757558588480,0.2283,4380.2,4380.1,0.7251]
[1757558590183,0.4375,4380.2,4380.1,0.7251]
[1757558594483,0.3098,4380.8,4380.1,0.4115]
[1757558594784,0.7243,4380.8,4380.7,0.7183]
[1757558599883,0.2092,4380.8,4380.7,0.7183]
[1757558600187,0.519,4381.1,4381.0,0.5385]
[1757558600377,0.7243,4381.1,4381.0,0.8453]
[1757558605788,0.7243,4381.1,4381.0,0.7183]
[1757558608590,0.7243,4381.1,4381.0,0.8375]
[1757558608981,0.7243,4381.1,4381.0,0.5182]
[1757558609386,0.7243,4381.1,4381.0,0.717]
[1757558610477,0.7243,4381.1,4381.0,0.8362]
[1757558611986,0.2157,4381.7,4381.6,0.7122]
[1757558612192,0.00342477,4381.8,4381.7,0.7122]
[1757558613089,0.21912477,4381.8,4381.7,1.7109228]
[1757558613290,0.00342477,4381.8,4381.7,1.7109228]
[1757558613588,0.00342477,4381.8,4381.7,0.7122]
[1757558613787,0.00342477,4381.8,4381.7,1.7109228]
[1757558616099,0.068,4382.8,4381.7,1.7109228]
[1757558616392,0.64499,4382.7,4382.6,0.5134]
[1757558616791,0.7359,4382.7,4382.6,0.3109]
[1757558616993,0.7359,4382.7,4382.1,0.3109]
[1757558620486,0.7359,4382.7,4382.6,0.5134]
[1757558621091,0.7359,4382.7,4382.6,0.3109]
[1757558621296,0.7359,4382.7,4382.1,0.3109]
[1757558622897,0.7359,4382.7,4382.6,0.5134]
[1757558624499,0.2157,4382.7,4382.6,0.7122]
[1757558625597,0.3191,4383.0,4382.7,0.3109]
[1757558625794,0.2157,4383.0,4382.9,0.7122]
[1757558626394,0.5348,4383.0,4382.9,0.7122]
[1757558626596,0.2157,4383.0,4382.9,0.7122]
[1757558627593,0.2157,4383.2,4383.1,0.5134]
[1757558627798,0.5348,4383.2,4383.1,0.7122]
[1757558628014,0.7359,4383.2,4383.1,0.7122]
[1757558632494,0.4168,4383.2,4383.1,0.7122]
[1757558632994,0.7359,4383.2,4383.1,0.7122]
[1757558637100,0.2157,4383.2,4383.1,0.7122]
[1757558639300,0.718,4383.2,4383.1,0.7122]
[1757558639499,0.718,4383.2,4383.1,0.5134]
[1757558639704,0.718,4383.2,4383.1,0.7238]
[1757558642706,0.2928,4383.5,4383.2,0.32]
[1757558642907,0.2144,4383.3,4383.2,0.7388]
[1757558643406,0.23,4383.9,4383.2,0.4188]
[1757558643609,1.30032673,4383.8,4383.7,0.4188]
[1757558643903,1.30032673,4383.8,4383.7,0.7388]
[1757558645604,1.30032673,4383.8,4383.7,0.5284]
[1757558647502,1.30032673,4383.8,4383.1,0.32]
[1757558647805,0.7167,4383.8,4383.1,0.32]
[1757558649108,0.2928,4383.1,4382.6,0.32]
[1757558649306,0.2144,4382.7,4382.6,0.7388]
[1757558649507,0.2928,4383.0,4382.6,0.4188]
[1757558649804,0.5072,4383.0,4382.9,0.4188]
[1757558649997,0.5072,4383.0,4382.9,0.7388]
[1757558652905,0.2095,4383.1,4383.0,0.545]
[1757558653112,0.7167,4383.1,4383.0,0.865]
[1757558653504,0.7167,4383.1,4383.0,0.7388]
[1757558654110,0.7167,4383.1,4383.0,0.5284]
[1757558656907,0.2095,4382.3,4382.2,0.7388]
[1757558657106,0.7167,4382.3,4382.2,0.7388]
[1757558657502,0.2928,4382.5,4382.2,0.7388]
[1757558657708,0.2928,4382.9,4382.3,0.32]
[1757558658009,0.7167,4382.9,4382.8,0.5284]
[1757558658420,0.7167,4382.9,4382.8,0.7388]
[1757558658612,0.1256,4383.5,4382.8,0.4188]
[1757558658810,1.30052897,4383.4,4383.3,0.2084]
[1757558659010,1.30052897,4383.4,4383.3,0.5284]
[1757558659212,0.7167,4383.4,4383.3,0.7388]
[1757558660021,0.4239,4383.4,4383.3,0.7388]
[1757558660310,0.3503,4384.0,4383.3,0.7388]
[1757558660510,1.18130141,4384.6,4383.0,0.1262]
[1757558660511,1.30049144,4383.9,4383.8,0.4188]
[1757558660716,1.30049144,4383.9,4383.8,0.7388]
[1757558662014,1.30049144,4383.9,4383.8,0.5284]
[1757558662717,1.30049144,4383.9,4383.1,0.32]
[1757558662912,0.7167,4383.9,4383.1,0.32]
[1757558665917,0.7167,4383.2,4383.1,0.7388]
[1757558666218,0.4239,4383.2,4383.1,0.7388]
[1757558666420,0.7167,4383.2,4383.1,0.7388]
[1757558670417,0.7167,4383.2,4382.6,1.18130141]
[1757558670618,0.2109,4382.8,4382.7,0.7258]
[1757558670928,0.5138,4382.8,4382.7,0.7258]
[1757558671128,0.7122,4382.8,4382.7,0.7258]
[1757558679732,0.4093,4382.8,4382.7,0.7258]
[1757558680126,0.3029,4383.0,4382.7,0.7258]
[1757558680424,0.3029,4383.0,4382.7,0.4026]
[1757558680625,0.3029,4383.0,4382.8,0.3232]
[1757558680825,0.5138,4383.0,4382.9,0.4026]
[1757558681030,0.5138,4383.0,4382.9,0.7258]
[1757558681429,0.2109,4383.0,4382.9,0.7258]
[1757558682636,0.3029,4383.2,4382.9,0.7258]
[1757558682822,0.6393,4383.6,4383.5,0.5217]
[1757558683023,1.45602803,4383.6,4383.5,0.5217]
[1757558683429,1.75892803,4383.6,4383.5,0.5217]
[1757558683628,1.52892803,4383.6,4383.5,0.3232]
[1757558683829,1.30079803,4383.6,4383.5,0.3232]
[1757558684029,1.30079803,4383.6,4383.5,0.5217]
[1757558684233,1.30079803,4383.6,4383.5,0.7258]
[1757558684536,0.7122,4383.6,4383.5,0.7258]
[1757558685440,0.7122,4383.6,4383.5,0.8484]
[1757558690450,0.2109,4383.6,4383.5,0.8484]
[1757558695254,0.7122,4383.6,4383.5,1.8456057]
[1757558703164,0.4093,4383.6,4383.5,1.8456057]
[1757558703466,0.7304,4383.6,4383.5,1.8456057]
[1757558704964,0.7304,4383.6,4383.5,0.8484]
[1757558705162,0.3211,4383.9,4383.5,0.5252]
[1757558705364,0.5242,4383.9,4383.8,0.7204]
[1757558705768,0.7252,4383.9,4383.8,0.7204]
[1757558706269,0.7252,4383.9,4383.8,0.5106]
[1757558706961,0.7252,4383.9,4383.8,0.3072]
[1757558707562,0.7252,4383.9,4383.8,0.5106]
[1757558708271,0.7252,4383.2,4383.1,0.5106]
[1757558708470,0.7252,4383.2,4383.1,0.7204]
[1757558708769,0.5242,4383.5,4383.4,0.4132]
[1757558708968,0.5242,4383.5,4383.4,0.7204]
[1757558709170,0.7252,4383.5,4383.4,0.7204]
[1757558709674,0.8467,4383.5,4383.4,0.5106]
[1757558713876,0.8467,4383.5,4383.4,0.3072]
[1757558714476,0.7252,4382.7,4382.6,0.3072]
[1757558714773,0.4041,4382.7,4382.6,0.7204]
[1757558715276,0.7252,4382.7,4382.1,0.3072]
[1757558715476,0.9972057,4382.6,4382.1,0.3072]
[1757558715676,0.2031,4382.2,4382.1,0.7204]
[1757558715872,0.2031,4382.7,4382.6,0.517]
[1757558716072,0.5741,4383.2,4383.1,0.7204]
[1757558716276,0.4041,4383.2,4383.1,0.7204]
[1757558716476,0.7252,4383.2,4383.1,0.7204]
[1757558716679,1.31211674,4383.2,4383.1,0.7204]
[1757558717469,0.7252,4383.2,4383.1,0.7204]
[1757558718277,0.2031,4383.2,4383.1,0.7204]
[1757558718670,0.5242,4383.2,4383.1,0.7204]
[1757558718872,0.7252,4383.2,4383.1,0.7204]
[1757558724468,0.4041,4383.2,4383.1,0.7204]
[1757558724671,0.2031,4383.2,4383.1,0.7204]
[1757558726182,0.5242,4383.2,4383.1,0.7204]
[1757558726485,0.7252,4383.2,4383.1,0.7204]
[1757558726782,0.7252,4383.2,4382.5,0.1276]
[1757558726983,0.7252,4383.2,4382.6,0.3072]
[1757558727381,0.7252,4383.2,4382.5,0.1276]
[1757558727382,0.7252,4383.2,4383.1,0.4979]
[1757558728684,0.7252,4383.2,4383.1,0.6991]
[1757558729381,0.2032,4383.3,4383.2,0.7032]
[1757558729887,0.5277,4383.3,4383.2,0.7032]
[1757558730188,0.7423,4383.3,4383.2,0.7032]
[1757558732591,0.7423,4383.3,4383.2,0.502]
[1757558732785,1.7395057,4383.3,4383.2,0.502]
[1757558733681,0.4178,4383.3,4383.2,0.7032]
[1757558733877,0.3245,4384.9,4384.4,0.4087]
[1757558734077,0.7423,4385.4,4385.3,0.2075]
[1757558734279,0.7423,4385.4,4385.3,0.7032]
[1757558734280,0.4178,4385.4,4385.3,0.7032]
[1757558734588,1.7395057,4385.4,4385.3,0.7032]
[1757558735186,0.7423,4385.4,4385.3,0.7032]
[1757558735388,1.7395057,4385.4,4384.6,0.2945]
[1757558735586,0.2032,4384.7,4384.6,0.7032]
[1757558735791,0.3245,4385.0,4384.7,0.2945]
[1757558735991,0.5277,4385.0,4384.9,0.4087]
[1757558736191,0.5277,4385.0,4384.9,0.7032]
[1757558736384,0.2032,4385.0,4384.9,0.7032]
[1757558736584,0.7587,4385.3,4385.2,0.502]
[1757558736784,0.9733,4385.3,4385.2,0.7032]
[1757558737692,0.9733,4385.3,4384.6,0.2945]
[1757558738592,0.9733,4385.3,4385.2,0.2075]
[1757558738786,0.9733,4385.3,4385.2,0.502]
[1757558739187,0.9733,4385.3,4384.6,0.2945]
[1757558739493,0.7423,4384.7,4384.6,0.7032]
[1757558739691,1.7395057,4384.7,4384.1,0.2945]
[1757558739892,0.7423,4384.2,4384.1,0.2075]
[1757558740100,0.7423,4384.2,4384.1,0.502]
[1757558740289,0.7423,4384.2,4384.1,0.7032]
[1757558740487,0.4178,4384.2,4384.1,0.7032]
[1757558742592,0.2032,4384.2,4384.1,0.7032]
[1757558744494,0.3245,4384.5,4384.1,0.4087]
[1757558744793,0.5277,4384.5,4384.4,0.4087]
[1757558744997,0.5277,4384.5,4384.4,0.7032]
[1757558747201,0.2032,4384.5,4384.4,0.7032]
[1757558747602,0.7423,4384.5,4384.4,0.7032]
[1757558748000,0.7423,4384.5,4384.4,0.502]
[1757558748194,0.8608,4384.5,4384.4,0.502]
[1757558749200,0.8608,4384.5,4384.1,0.2945]
[1757558749493,0.8608,4384.5,4383.6,0.2281]
[1757558749698,0.8608,4384.5,4383.7,0.2945]
[1757558751202,0.9733,4384.5,4384.4,0.7032]
[1757558752702,0.2032,4384.5,4384.4,0.7032]
[1757558753202,1.48344526,4385.5,4384.4,0.7032]
[1757558753203,0.3245,4385.9,4384.6,0.2945]
[1757558753407,0.22804001,4385.9,4385.0,1.305913]
[1757558753603,0.7423,4385.9,4385.8,0.2075]
[1757558753801,0.7423,4385.9,4385.8,0.502]
[1757558754100,0.97031,4385.9,4385.8,0.502]
[1757558754301,1.21647022,4386.9,4385.0,1.305913]
[1757558754302,1.21647022,4386.9,4386.0,0.1254]
[1757558754500,0.7423,4386.3,4386.2,0.7032]
[1757558755312,0.3245,4387.4,4386.3,0.2945]
[1757558755602,0.3245,4387.2,4386.3,0.2945]
[1757558755807,0.7423,4387.2,4387.1,0.502]
[1757558756203,0.7423,4387.2,4387.1,0.7032]
[1757558758106,0.9733,4387.2,4387.1,0.7032]
[1757558758313,0.9733,4387.2,4386.6,0.3171]
[1757558758806,0.9733,4387.2,4387.1,0.1952]
[1757558759012,0.9733,4387.2,4387.1,0.7238]
[1757558759402,0.7423,4387.2,4387.1,0.7238]
[1757558759711,0.9733,4387.2,4387.1,0.7238]
[1757558759908,0.9733,4387.2,4386.5,0.1254]
[1757558760209,0.7238,4386.7,4386.6,0.5123]
[1757558760809,1.904313,4386.7,4386.6,0.1952]
[1757558761008,1.904313,4386.7,4386.1,0.3171]
[1757558761617,0.7238,4386.7,4386.1,0.3171]
[1757558762516,0.9378,4386.6,4386.5,0.5123]
[1757558763116,0.7238,4386.6,4386.5,0.8518]
[1757558763311,0.7238,4386.6,4386.2,0.3171]
[1757558763609,0.7238,4386.6,4386.0,0.1254]
[1757558763916,0.4245,4386.5,4386.4,0.1952]
[1757558764114,0.7238,4386.5,4386.4,0.5123]
[1757558764312,0.8492,4386.5,4386.1,0.3171]
[1757558764617,0.7238,4386.4,4386.3,0.5123]
[1757558768921,0.9548,4386.4,4386.3,0.5123]
[1757558769118,0.9548,4386.4,4386.1,0.3171]
[1757558769307,0.9548,4386.4,4385.7,0.3171]
[1757558769714,0.9548,4386.4,4386.3,0.5123]
[1757558770824,5.18278,4386.4,4385.6,0.3171]
[1757558771024,0.2095,4385.2,4385.1,0.7238]
[1757558771216,0.2095,4385.2,4385.1,0.95181]
[1757558771523,0.2095,4385.2,4385.1,0.7238]
[1757558772822,0.7238,4385.2,4385.1,0.7238]
[1757558773021,0.7238,4385.2,4384.6,0.3171]
[1757558774919,0.2993,4384.6,4384.1,0.3171]
[1757558775222,0.4245,4384.2,4384.1,0.7238]
[1757558775625,0.2095,4384.2,4384.1,0.7238]
[1757558776125,0.7238,4384.2,4384.1,0.7238]
[1757558776424,0.7238,4384.2,4384.1,0.5123]
[1757558776622,0.7238,4384.2,4383.6,0.3171]
[1757558776826,0.7238,4383.7,4383.6,0.5123]
[1757558777123,0.7238,4383.7,4383.6,0.7238]
[1757558778627,0.7238,4383.7,4383.1,0.3171]
[1757558778829,0.7238,4383.7,4383.6,0.5123]
[1757558780125,0.2095,4383.7,4383.6,0.7238]
[1757558780429,0.231,4383.8,4383.7,0.7238]
[1757558780828,0.2095,4384.1,4384.0,0.5347]
[1757558781026,0.4405,4384.1,4384.0,0.8518]
[1757558785426,0.2993,4384.4,4384.0,0.5347]
[1757558785629,0.4405,4384.3,4384.2,0.7238]
[1757558785827,0.2095,4384.3,4384.2,0.7238]
[1757558786034,0.9548,4384.3,4384.2,0.7238]
[1757558787939,0.9548,4384.3,4383.6,0.3191]
[1757558788329,0.9548,4384.3,4384.2,0.5323]
[1757558790637,2.135313,4384.3,4383.6,0.3191]
[1757558791434,0.9548,4384.3,4384.2,0.2132]
[1757558791736,0.9548,4384.3,4384.2,0.5323]
[1757558793038,0.9548,4384.3,4383.5,0.128]
[1757558793238,0.9548,4384.3,4383.6,0.3191]
[1757558793832,0.7238,4384.3,4384.2,0.5323]
[1757558794031,0.9548,4384.3,4384.2,0.5323]
[1757558794434,0.7238,4384.3,4384.2,0.5323]
[1757558794633,0.9548,4384.3,4383.6,0.3191]
[1757558798243,0.7238,4384.3,4383.6,0.3191]
[1757558798445,0.9413,4384.2,4384.1,0.5323]
[1757558798644,0.9413,4384.2,4383.6,0.3191]
[1757558802250,0.2059,4383.7,4383.6,0.7477]
[1757558804751,0.7103,4383.7,4383.6,0.7477]
[1757558804947,0.7103,4383.7,4383.0,0.3191]
[1757558804948,0.3048,4383.6,4383.0,0.3191]
[1757558805153,0.7103,4383.1,4383.0,0.5323]
[1757558805350,0.7103,4383.1,4382.0,3.34064905]
[1757558805550,0.7103,4383.1,4382.6,0.3191]
[1757558805750,0.7103,4382.7,4382.6,0.7477]
[1757558806252,0.4055,4382.7,4382.6,0.7477]
[1757558806655,0.7103,4382.7,4382.6,0.7477]
[1757558813555,0.7103,4382.7,4382.6,0.3191]
[1757558813750,0.7103,4382.7,4382.0,0.1198]
[1757558813751,1.70798958,4382.7,4382.0,0.1198]
[1757558813945,1.92298958,4382.7,4382.1,0.3191]
[1757558814956,1.70798958,4382.7,4382.6,0.5323]
[1757558815164,0.9413,4382.7,4382.6,0.7477]
[1757558816255,1.30248958,4383.0,4382.6,0.7477]
[1757558816449,0.5107,4383.4,4383.3,0.4286]
[1757558816653,0.9413,4383.4,4383.3,0.7477]
[1757558816847,1.5295125,4383.4,4383.3,0.7477]
[1757558817562,1.5295125,4383.4,4383.0,0.2961]
[1757558817862,0.7309,4383.1,4383.0,0.4953]
[1757558818170,0.7309,4383.1,4383.0,0.7032]
[1757558820060,0.7309,4382.7,4382.6,0.4953]
[1757558820254,0.9619,4382.7,4382.6,0.7032]
[1757558822159,0.9619,4382.7,4382.6,0.2961]
[1757558822366,0.9619,4382.7,4382.0,0.1198]
[1757558822367,0.9619,4382.7,4382.1,0.2961]
[1757558822562,0.7309,4382.2,4382.1,0.4953]
[1757558822763,0.7309,4382.2,4382.1,0.7032]
[1757558823262,0.4083,4382.2,4382.1,0.7032]
[1757558825368,0.7309,4382.2,4382.1,0.7032]
[1757558825569,1.72858958,4382.2,4382.1,0.4953]
[1757558826164,1.72858958,4382.2,4381.6,0.2961]
[1757558826462,0.7309,4381.7,4381.6,0.4953]
[1757558827264,0.9591,4381.7,4381.6,0.4953]
[1757558830972,0.9591,4381.7,4381.6,0.7032]
[1757558831372,0.2282,4381.7,4381.6,5.92910958]
[1757558831579,0.2282,4381.7,4381.6,4.93142]
[1757558831979,0.2282,4381.7,4381.6,0.7032]
[1757558832181,0.4244,4381.7,4381.6,0.7032]
[1757558833482,0.9591,4381.7,4381.6,0.7032]
[1757558835084,1.95678958,4381.7,4381.6,0.7032]
[1757558835382,0.9591,4381.7,4381.6,0.7032]
[1757558835981,0.2282,4381.7,4381.6,0.7032]
[1757558837581,0.9591,4381.7,4381.6,0.7032]
[1757558837786,0.9591,4381.7,4381.6,0.4953]
[1757558838891,0.9591,4381.7,4381.1,0.2961]
[1757558839087,0.7309,4381.2,4381.1,0.7032]
[1757558839282,0.4083,4381.2,4381.1,0.7032]
[1757558839687,1.72858958,4381.2,4381.1,0.7032]
[1757558839992,0.7309,4381.2,4381.1,0.7032]
[1757558841291,0.7309,4381.2,4380.6,0.2961]
[1757558841292,1.72858958,4381.2,4380.6,0.2961]
[1757558841496,0.7309,4380.7,4380.6,0.7032]
[1757558841794,0.5536,4381.1,4381.0,0.1263]
[1757558842094,0.6393,4381.1,4381.0,0.5334]
[1757558842392,0.9619,4381.1,4381.0,0.8295]
[1757558842591,0.7309,4381.1,4381.0,0.8295]